{"text_format":"1","workbook":"xlsx","n_sheets":3,"sheets":["Ввод данных","Персональные данные","Движение"],"not_rendered":{"charts":0,"images":0,"macros":1,"external_links":0,"defined_names":0,"comments":0,"pivot_tables":0},"unopened":[],"bounds":{"document_bytes":16777216,"sheet_cells":100000,"rows_first":2000,"rows_last":500,"rows_between":2000,"halvings":0,"cell_chars":16384,"cell_head_chars":4096},"cells_cut":0,"cells_raw":0,"read":"whole","date_system":"1900"}

{"sheet":"Ввод данных","index":0,"n_rows":6,"n_cols":16,"rows_kept":6,"cut":false,"hidden":false,"merged":[[2,12,3,12],[2,13,3,13],[2,14,3,15],[0,0,0,8],[2,8,2,10],[2,11,3,11],[2,4,3,4],[2,0,3,0],[2,1,3,1],[2,2,3,2],[2,3,3,3],[2,6,3,6],[2,7,3,7]]}
["Форма ввода данных"]
[]
["№ ","Дата     выдачи","Срок    выдачи","До даты","№ ТСР","Выдано","Ф.И.О","Дата рождения","Паспортные данные",null,null,"Дата выдачи","Место регистрации","Место проживания","Телефон"]
[null,null,null,null,null,"Возврат",null,null,"серия","номер","кем выдан"]
[]
[2,"2022-02-11",6,"2022-08-11",410100100,"Выдано","Смирнов Виктор Иванович","1988-01-12",101,505642,"ГОВД ","2001-06-15","Россия","Россия",9099090000,3869570318]

{"sheet":"Персональные данные","index":1,"n_rows":5,"n_cols":11,"rows_kept":5,"cut":false,"hidden":false,"merged":[[1,9,2,10],[1,1,2,1],[1,2,2,2],[1,3,1,5],[1,0,2,0],[0,1,0,6],[1,6,2,6],[1,7,2,7],[1,8,2,8]]}
[null,"Персональные данные"]
["№","Ф.И.О","Дата рождения","Паспортные данные",null,null,"Дата выдачи","Место регистрации","Место проживания","Телефон"]
[null,null,null,"серия","номер","кем выдан"]
[1,1]
[null,"Смирнов Виктор Иванович","1988-01-12",101,505642,"ГОВД ","2001-06-15","Россия","Россия",9099090000,3869570318]

{"sheet":"Движение","index":2,"n_rows":500,"n_cols":9,"rows_kept":500,"cut":false,"hidden":false,"merged":[[6,8,7,8],[5,1,5,7],[6,1,7,1],[6,2,7,2],[6,3,7,3],[6,4,7,4],[6,5,7,5],[6,7,7,7]]}
[]
[]
[]
[]
[]
[null,"Движение"]
[null,"№ ","Дата     выдачи","Срок    выдачи","Дата возврата","№ ТСР","Выдано","Ф.И.О","Наименование"]
[null,null,null,null,null,null,"Возврат"]
[null,1]
[null,2,"2022-02-11",6,"2022-08-11",410100100,"Выдано","Смирнов Виктор Иванович",{"$f":"IFERROR(INDEX(#REF!,MATCH(F10,#REF!,)),\"\")","v":""}]
[null,null,null,null,null,null,null,null,{"$f":"IFERROR(INDEX(#REF!,MATCH(F11,#REF!,)),\"\")","v":""}]
[null,null,null,null,null,null,null,null,{"$f":"IFERROR(INDEX(#REF!,MATCH(F12,#REF!,)),\"\")","v":""}]
[null,null,null,null,null,null,null,null,{"$f":"IFERROR(INDEX(#REF!,MATCH(F13,#REF!,)),\"\")","v":""}]
[null,null,null,null,null,null,null,null,{"$f":"IFERROR(INDEX(#REF!,MATCH(F14,#REF!,)),\"\")","v":""}]
[null,null,null,null,null,null,null,null,{"$f":"IFERROR(INDEX(#REF!,MATCH(F15,#REF!,)),\"\")","v":""}]
[null,null,null,null,null,null,null,null,{"$f":"IFERROR(INDEX(#REF!,MATCH(F16,#REF!,)),\"\")","v":""}]
[null,null,null,null,null,null,null,null,{"$f":"IFERROR(INDEX(#REF!,MATCH(F17,#REF!,)),\"\")","v":""}]
[null,null,null,null,null,null,null,null,{"$f":"IFERROR(INDEX(#REF!,MATCH(F18,#REF!,)),\"\")","v":""}]
[null,null,null,null,null,null,null,null,{"$f":"IFERROR(INDEX(#REF!,MATCH(F19,#REF!,)),\"\")","v":""}]
[null,null,null,null,null,null,null,null,{"$f":"IFERROR(INDEX(#REF!,MATCH(F20,#REF!,)),\"\")","v":""}]
[null,null,null,null,null,null,null,null,{"$f":"IFERROR(INDEX(#REF!,MATCH(F21,#REF!,)),\"\")","v":""}]
[null,null,null,null,null,null,null,null,{"$f":"IFERROR(INDEX(#REF!,MATCH(F22,#REF!,)),\"\")","v":""}]
[null,null,null,null,null,null,null,null,{"$f":"IFERROR(INDEX(#REF!,MATCH(F23,#REF!,)),\"\")","v":""}]
[null,null,null,null,null,null,null,null,{"$f":"IFERROR(INDEX(#REF!,MATCH(F24,#REF!,)),\"\")","v":""}]
[null,null,null,null,null,null,null,null,{"$f":"IFERROR(INDEX(#REF!,MATCH(F25,#REF!,)),\"\")","v":""}]
[null,null,null,null,null,null,null,null,{"$f":"IFERROR(INDEX(#REF!,MATCH(F26,#REF!,)),\"\")","v":""}]
[null,null,null,null,null,null,null,null,{"$f":"IFERROR(INDEX(#REF!,MATCH(F27,#REF!,)),\"\")","v":""}]
[null,null,null,null,null,null,null,null,{"$f":"IFERROR(INDEX(#REF!,MATCH(F28,#REF!,)),\"\")","v":""}]
[null,null,null,null,null,null,null,null,{"$f":"IFERROR(INDEX(#REF!,MATCH(F29,#REF!,)),\"\")","v":""}]
[null,null,null,null,null,null,null,null,{"$f":"IFERROR(INDEX(#REF!,MATCH(F30,#REF!,)),\"\")","v":""}]
[null,null,null,null,null,null,null,null,{"$f":"IFERROR(INDEX(#REF!,MATCH(F31,#REF!,)),\"\")","v":""}]
[null,null,null,null,null,null,null,null,{"$f":"IFERROR(INDEX(#REF!,MATCH(F32,#REF!,)),\"\")","v":""}]
[null,null,null,null,null,null,null,null,{"$f":"IFERROR(INDEX(#REF!,MATCH(F33,#REF!,)),\"\")","v":""}]
[null,null,null,null,null,null,null,null,{"$f":"IFERROR(INDEX(#REF!,MATCH(F34,#REF!,)),\"\")","v":""}]
[null,null,null,null,null,null,null,null,{"$f":"IFERROR(INDEX(#REF!,MATCH(F35,#REF!,)),\"\")","v":""}]
[null,null,null,null,null,null,null,null,{"$f":"IFERROR(INDEX(#REF!,MATCH(F36,#REF!,)),\"\")","v":""}]
[null,null,null,null,null,null,null,null,{"$f":"IFERROR(INDEX(#REF!,MATCH(F37,#REF!,)),\"\")","v":""}]
[null,null,null,null,null,null,null,null,{"$f":"IFERROR(INDEX(#REF!,MATCH(F38,#REF!,)),\"\")","v":""}]
[null,null,null,null,null,null,null,null,{"$f":"IFERROR(INDEX(#REF!,MATCH(F39,#REF!,)),\"\")","v":""}]
[null,null,null,null,null,null,null,null,{"$f":"IFERROR(INDEX(#REF!,MATCH(F40,#REF!,)),\"\")","v":""}]
[null,null,null,null,null,null,null,null,{"$f":"IFERROR(INDEX(#REF!,MATCH(F41,#REF!,)),\"\")","v":""}]
[null,null,null,null,null,null,null,null,{"$f":"IFERROR(INDEX(#REF!,MATCH(F42,#REF!,)),\"\")","v":""}]
[null,null,null,null,null,null,null,null,{"$f":"IFERROR(INDEX(#REF!,MATCH(F43,#REF!,)),\"\")","v":""}]
[null,null,null,null,null,null,null,null,{"$f":"IFERROR(INDEX(#REF!,MATCH(F44,#REF!,)),\"\")","v":""}]
[null,null,null,null,null,null,null,null,{"$f":"IFERROR(INDEX(#REF!,MATCH(F45,#REF!,)),\"\")","v":""}]
[null,null,null,null,null,null,null,null,{"$f":"IFERROR(INDEX(#REF!,MATCH(F46,#REF!,)),\"\")","v":""}]
[null,null,null,null,null,null,null,null,{"$f":"IFERROR(INDEX(#REF!,MATCH(F47,#REF!,)),\"\")","v":""}]
[null,null,null,null,null,null,null,null,{"$f":"IFERROR(INDEX(#REF!,MATCH(F48,#REF!,)),\"\")","v":""}]
[null,null,null,null,null,null,null,null,{"$f":"IFERROR(INDEX(#REF!,MATCH(F49,#REF!,)),\"\")","v":""}]
[null,null,null,null,null,null,null,null,{"$f":"IFERROR(INDEX(#REF!,MATCH(F50,#REF!,)),\"\")","v":""}]
[null,null,null,null,null,null,null,null,{"$f":"IFERROR(INDEX(#REF!,MATCH(F51,#REF!,)),\"\")","v":""}]
[null,null,null,null,null,null,null,null,{"$f":"IFERROR(INDEX(#REF!,MATCH(F52,#REF!,)),\"\")","v":""}]
[null,null,null,null,null,null,null,null,{"$f":"IFERROR(INDEX(#REF!,MATCH(F53,#REF!,)),\"\")","v":""}]
[null,null,null,null,null,null,null,null,{"$f":"IFERROR(INDEX(#REF!,MATCH(F54,#REF!,)),\"\")","v":""}]
[null,null,null,null,null,null,null,null,{"$f":"IFERROR(INDEX(#REF!,MATCH(F55,#REF!,)),\"\")","v":""}]
[null,null,null,null,null,null,null,null,{"$f":"IFERROR(INDEX(#REF!,MATCH(F56,#REF!,)),\"\")","v":""}]
[null,null,null,null,null,null,null,null,{"$f":"IFERROR(INDEX(#REF!,MATCH(F57,#REF!,)),\"\")","v":""}]
[null,null,null,null,null,null,null,null,{"$f":"IFERROR(INDEX(#REF!,MATCH(F58,#REF!,)),\"\")","v":""}]
[null,null,null,null,null,null,null,null,{"$f":"IFERROR(INDEX(#REF!,MATCH(F59,#REF!,)),\"\")","v":""}]
[null,null,null,null,null,null,null,null,{"$f":"IFERROR(INDEX(#REF!,MATCH(F60,#REF!,)),\"\")","v":""}]
[null,null,null,null,null,null,null,null,{"$f":"IFERROR(INDEX(#REF!,MATCH(F61,#REF!,)),\"\")","v":""}]
[null,null,null,null,null,null,null,null,{"$f":"IFERROR(INDEX(#REF!,MATCH(F62,#REF!,)),\"\")","v":""}]
[null,null,null,null,null,null,null,null,{"$f":"IFERROR(INDEX(#REF!,MATCH(F63,#REF!,)),\"\")","v":""}]
[null,null,null,null,null,null,null,null,{"$f":"IFERROR(INDEX(#REF!,MATCH(F64,#REF!,)),\"\")","v":""}]
[null,null,null,null,null,null,null,null,{"$f":"IFERROR(INDEX(#REF!,MATCH(F65,#REF!,)),\"\")","v":""}]
[null,null,null,null,null,null,null,null,{"$f":"IFERROR(INDEX(#REF!,MATCH(F66,#REF!,)),\"\")","v":""}]
[null,null,null,null,null,null,null,null,{"$f":"IFERROR(INDEX(#REF!,MATCH(F67,#REF!,)),\"\")","v":""}]
[null,null,null,null,null,null,null,null,{"$f":"IFERROR(INDEX(#REF!,MATCH(F68,#REF!,)),\"\")","v":""}]
[null,null,null,null,null,null,null,null,{"$f":"IFERROR(INDEX(#REF!,MATCH(F69,#REF!,)),\"\")","v":""}]
[null,null,null,null,null,null,null,null,{"$f":"IFERROR(INDEX(#REF!,MATCH(F70,#REF!,)),\"\")","v":""}]
[null,null,null,null,null,null,null,null,{"$f":"IFERROR(INDEX(#REF!,MATCH(F71,#REF!,)),\"\")","v":""}]
[null,null,null,null,null,null,null,null,{"$f":"IFERROR(INDEX(#REF!,MATCH(F72,#REF!,)),\"\")","v":""}]
[null,null,null,null,null,null,null,null,{"$f":"IFERROR(INDEX(#REF!,MATCH(F73,#REF!,)),\"\")","v":""}]
[null,null,null,null,null,null,null,null,{"$f":"IFERROR(INDEX(#REF!,MATCH(F74,#REF!,)),\"\")","v":""}]
[null,null,null,null,null,null,null,null,{"$f":"IFERROR(INDEX(#REF!,MATCH(F75,#REF!,)),\"\")","v":""}]
[null,null,null,null,null,null,null,null,{"$f":"IFERROR(INDEX(#REF!,MATCH(F76,#REF!,)),\"\")","v":""}]
[null,null,null,null,null,null,null,null,{"$f":"IFERROR(INDEX(#REF!,MATCH(F77,#REF!,)),\"\")","v":""}]
[null,null,null,null,null,null,null,null,{"$f":"IFERROR(INDEX(#REF!,MATCH(F78,#REF!,)),\"\")","v":""}]
[null,null,null,null,null,null,null,null,{"$f":"IFERROR(INDEX(#REF!,MATCH(F79,#REF!,)),\"\")","v":""}]
[null,null,null,null,null,null,null,null,{"$f":"IFERROR(INDEX(#REF!,MATCH(F80,#REF!,)),\"\")","v":""}]
[null,null,null,null,null,null,null,null,{"$f":"IFERROR(INDEX(#REF!,MATCH(F81,#REF!,)),\"\")","v":""}]
[null,null,null,null,null,null,null,null,{"$f":"IFERROR(INDEX(#REF!,MATCH(F82,#REF!,)),\"\")","v":""}]
[null,null,null,null,null,null,null,null,{"$f":"IFERROR(INDEX(#REF!,MATCH(F83,#REF!,)),\"\")","v":""}]
[null,null,null,null,null,null,null,null,{"$f":"IFERROR(INDEX(#REF!,MATCH(F84,#REF!,)),\"\")","v":""}]
[null,null,null,null,null,null,null,null,{"$f":"IFERROR(INDEX(#REF!,MATCH(F85,#REF!,)),\"\")","v":""}]
[null,null,null,null,null,null,null,null,{"$f":"IFERROR(INDEX(#REF!,MATCH(F86,#REF!,)),\"\")","v":""}]
[null,null,null,null,null,null,null,null,{"$f":"IFERROR(INDEX(#REF!,MATCH(F87,#REF!,)),\"\")","v":""}]
[null,null,null,null,null,null,null,null,{"$f":"IFERROR(INDEX(#REF!,MATCH(F88,#REF!,)),\"\")","v":""}]
[null,null,null,null,null,null,null,null,{"$f":"IFERROR(INDEX(#REF!,MATCH(F89,#REF!,)),\"\")","v":""}]
[null,null,null,null,null,null,null,null,{"$f":"IFERROR(INDEX(#REF!,MATCH(F90,#REF!,)),\"\")","v":""}]
[null,null,null,null,null,null,null,null,{"$f":"IFERROR(INDEX(#REF!,MATCH(F91,#REF!,)),\"\")","v":""}]
[null,null,null,null,null,null,null,null,{"$f":"IFERROR(INDEX(#REF!,MATCH(F92,#REF!,)),\"\")","v":""}]
[null,null,null,null,null,null,null,null,{"$f":"IFERROR(INDEX(#REF!,MATCH(F93,#REF!,)),\"\")","v":""}]
[null,null,null,null,null,null,null,null,{"$f":"IFERROR(INDEX(#REF!,MATCH(F94,#REF!,)),\"\")","v":""}]
[null,null,null,null,null,null,null,null,{"$f":"IFERROR(INDEX(#REF!,MATCH(F95,#REF!,)),\"\")","v":""}]
[null,null,null,null,null,null,null,null,{"$f":"IFERROR(INDEX(#REF!,MATCH(F96,#REF!,)),\"\")","v":""}]
[null,null,null,null,null,null,null,null,{"$f":"IFERROR(INDEX(#REF!,MATCH(F97,#REF!,)),\"\")","v":""}]
[null,null,null,null,null,null,null,null,{"$f":"IFERROR(INDEX(#REF!,MATCH(F98,#REF!,)),\"\")","v":""}]
[null,null,null,null,null,null,null,null,{"$f":"IFERROR(INDEX(#REF!,MATCH(F99,#REF!,)),\"\")","v":""}]
[null,null,null,null,null,null,null,null,{"$f":"IFERROR(INDEX(#REF!,MATCH(F100,#REF!,)),\"\")","v":""}]
[null,null,null,null,null,null,null,null,{"$f":"IFERROR(INDEX(#REF!,MATCH(F101,#REF!,)),\"\")","v":""}]
[null,null,null,null,null,null,null,null,{"$f":"IFERROR(INDEX(#REF!,MATCH(F102,#REF!,)),\"\")","v":""}]
[null,null,null,null,null,null,null,null,{"$f":"IFERROR(INDEX(#REF!,MATCH(F103,#REF!,)),\"\")","v":""}]
[null,null,null,null,null,null,null,null,{"$f":"IFERROR(INDEX(#REF!,MATCH(F104,#REF!,)),\"\")","v":""}]
[null,null,null,null,null,null,null,null,{"$f":"IFERROR(INDEX(#REF!,MATCH(F105,#REF!,)),\"\")","v":""}]
[null,null,null,null,null,null,null,null,{"$f":"IFERROR(INDEX(#REF!,MATCH(F106,#REF!,)),\"\")","v":""}]
[null,null,null,null,null,null,null,null,{"$f":"IFERROR(INDEX(#REF!,MATCH(F107,#REF!,)),\"\")","v":""}]
[null,null,null,null,null,null,null,null,{"$f":"IFERROR(INDEX(#REF!,MATCH(F108,#REF!,)),\"\")","v":""}]
[null,null,null,null,null,null,null,null,{"$f":"IFERROR(INDEX(#REF!,MATCH(F109,#REF!,)),\"\")","v":""}]
[null,null,null,null,null,null,null,null,{"$f":"IFERROR(INDEX(#REF!,MATCH(F110,#REF!,)),\"\")","v":""}]
[null,null,null,null,null,null,null,null,{"$f":"IFERROR(INDEX(#REF!,MATCH(F111,#REF!,)),\"\")","v":""}]
[null,null,null,null,null,null,null,null,{"$f":"IFERROR(INDEX(#REF!,MATCH(F112,#REF!,)),\"\")","v":""}]
[null,null,null,null,null,null,null,null,{"$f":"IFERROR(INDEX(#REF!,MATCH(F113,#REF!,)),\"\")","v":""}]
[null,null,null,null,null,null,null,null,{"$f":"IFERROR(INDEX(#REF!,MATCH(F114,#REF!,)),\"\")","v":""}]
[null,null,null,null,null,null,null,null,{"$f":"IFERROR(INDEX(#REF!,MATCH(F115,#REF!,)),\"\")","v":""}]
[null,null,null,null,null,null,null,null,{"$f":"IFERROR(INDEX(#REF!,MATCH(F116,#REF!,)),\"\")","v":""}]
[null,null,null,null,null,null,null,null,{"$f":"IFERROR(INDEX(#REF!,MATCH(F117,#REF!,)),\"\")","v":""}]
[null,null,null,null,null,null,null,null,{"$f":"IFERROR(INDEX(#REF!,MATCH(F118,#REF!,)),\"\")","v":""}]
[null,null,null,null,null,null,null,null,{"$f":"IFERROR(INDEX(#REF!,MATCH(F119,#REF!,)),\"\")","v":""}]
[null,null,null,null,null,null,null,null,{"$f":"IFERROR(INDEX(#REF!,MATCH(F120,#REF!,)),\"\")","v":""}]
[null,null,null,null,null,null,null,null,{"$f":"IFERROR(INDEX(#REF!,MATCH(F121,#REF!,)),\"\")","v":""}]
[null,null,null,null,null,null,null,null,{"$f":"IFERROR(INDEX(#REF!,MATCH(F122,#REF!,)),\"\")","v":""}]
[null,null,null,null,null,null,null,null,{"$f":"IFERROR(INDEX(#REF!,MATCH(F123,#REF!,)),\"\")","v":""}]
[null,null,null,null,null,null,null,null,{"$f":"IFERROR(INDEX(#REF!,MATCH(F124,#REF!,)),\"\")","v":""}]
[null,null,null,null,null,null,null,null,{"$f":"IFERROR(INDEX(#REF!,MATCH(F125,#REF!,)),\"\")","v":""}]
[null,null,null,null,null,null,null,null,{"$f":"IFERROR(INDEX(#REF!,MATCH(F126,#REF!,)),\"\")","v":""}]
[null,null,null,null,null,null,null,null,{"$f":"IFERROR(INDEX(#REF!,MATCH(F127,#REF!,)),\"\")","v":""}]
[null,null,null,null,null,null,null,null,{"$f":"IFERROR(INDEX(#REF!,MATCH(F128,#REF!,)),\"\")","v":""}]
[null,null,null,null,null,null,null,null,{"$f":"IFERROR(INDEX(#REF!,MATCH(F129,#REF!,)),\"\")","v":""}]
[null,null,null,null,null,null,null,null,{"$f":"IFERROR(INDEX(#REF!,MATCH(F130,#REF!,)),\"\")","v":""}]
[null,null,null,null,null,null,null,null,{"$f":"IFERROR(INDEX(#REF!,MATCH(F131,#REF!,)),\"\")","v":""}]
[null,null,null,null,null,null,null,null,{"$f":"IFERROR(INDEX(#REF!,MATCH(F132,#REF!,)),\"\")","v":""}]
[null,null,null,null,null,null,null,null,{"$f":"IFERROR(INDEX(#REF!,MATCH(F133,#REF!,)),\"\")","v":""}]
[null,null,null,null,null,null,null,null,{"$f":"IFERROR(INDEX(#REF!,MATCH(F134,#REF!,)),\"\")","v":""}]
[null,null,null,null,null,null,null,null,{"$f":"IFERROR(INDEX(#REF!,MATCH(F135,#REF!,)),\"\")","v":""}]
[null,null,null,null,null,null,null,null,{"$f":"IFERROR(INDEX(#REF!,MATCH(F136,#REF!,)),\"\")","v":""}]
[null,null,null,null,null,null,null,null,{"$f":"IFERROR(INDEX(#REF!,MATCH(F137,#REF!,)),\"\")","v":""}]
[null,null,null,null,null,null,null,null,{"$f":"IFERROR(INDEX(#REF!,MATCH(F138,#REF!,)),\"\")","v":""}]
[null,null,null,null,null,null,null,null,{"$f":"IFERROR(INDEX(#REF!,MATCH(F139,#REF!,)),\"\")","v":""}]
[null,null,null,null,null,null,null,null,{"$f":"IFERROR(INDEX(#REF!,MATCH(F140,#REF!,)),\"\")","v":""}]
[null,null,null,null,null,null,null,null,{"$f":"IFERROR(INDEX(#REF!,MATCH(F141,#REF!,)),\"\")","v":""}]
[null,null,null,null,null,null,null,null,{"$f":"IFERROR(INDEX(#REF!,MATCH(F142,#REF!,)),\"\")","v":""}]
[null,null,null,null,null,null,null,null,{"$f":"IFERROR(INDEX(#REF!,MATCH(F143,#REF!,)),\"\")","v":""}]
[null,null,null,null,null,null,null,null,{"$f":"IFERROR(INDEX(#REF!,MATCH(F144,#REF!,)),\"\")","v":""}]
[null,null,null,null,null,null,null,null,{"$f":"IFERROR(INDEX(#REF!,MATCH(F145,#REF!,)),\"\")","v":""}]
[null,null,null,null,null,null,null,null,{"$f":"IFERROR(INDEX(#REF!,MATCH(F146,#REF!,)),\"\")","v":""}]
[null,null,null,null,null,null,null,null,{"$f":"IFERROR(INDEX(#REF!,MATCH(F147,#REF!,)),\"\")","v":""}]
[null,null,null,null,null,null,null,null,{"$f":"IFERROR(INDEX(#REF!,MATCH(F148,#REF!,)),\"\")","v":""}]
[null,null,null,null,null,null,null,null,{"$f":"IFERROR(INDEX(#REF!,MATCH(F149,#REF!,)),\"\")","v":""}]
[null,null,null,null,null,null,null,null,{"$f":"IFERROR(INDEX(#REF!,MATCH(F150,#REF!,)),\"\")","v":""}]
[null,null,null,null,null,null,null,null,{"$f":"IFERROR(INDEX(#REF!,MATCH(F151,#REF!,)),\"\")","v":""}]
[null,null,null,null,null,null,null,null,{"$f":"IFERROR(INDEX(#REF!,MATCH(F152,#REF!,)),\"\")","v":""}]
[null,null,null,null,null,null,null,null,{"$f":"IFERROR(INDEX(#REF!,MATCH(F153,#REF!,)),\"\")","v":""}]
[null,null,null,null,null,null,null,null,{"$f":"IFERROR(INDEX(#REF!,MATCH(F154,#REF!,)),\"\")","v":""}]
[null,null,null,null,null,null,null,null,{"$f":"IFERROR(INDEX(#REF!,MATCH(F155,#REF!,)),\"\")","v":""}]
[null,null,null,null,null,null,null,null,{"$f":"IFERROR(INDEX(#REF!,MATCH(F156,#REF!,)),\"\")","v":""}]
[null,null,null,null,null,null,null,null,{"$f":"IFERROR(INDEX(#REF!,MATCH(F157,#REF!,)),\"\")","v":""}]
[null,null,null,null,null,null,null,null,{"$f":"IFERROR(INDEX(#REF!,MATCH(F158,#REF!,)),\"\")","v":""}]
[null,null,null,null,null,null,null,null,{"$f":"IFERROR(INDEX(#REF!,MATCH(F159,#REF!,)),\"\")","v":""}]
[null,null,null,null,null,null,null,null,{"$f":"IFERROR(INDEX(#REF!,MATCH(F160,#REF!,)),\"\")","v":""}]
[null,null,null,null,null,null,null,null,{"$f":"IFERROR(INDEX(#REF!,MATCH(F161,#REF!,)),\"\")","v":""}]
[null,null,null,null,null,null,null,null,{"$f":"IFERROR(INDEX(#REF!,MATCH(F162,#REF!,)),\"\")","v":""}]
[null,null,null,null,null,null,null,null,{"$f":"IFERROR(INDEX(#REF!,MATCH(F163,#REF!,)),\"\")","v":""}]
[null,null,null,null,null,null,null,null,{"$f":"IFERROR(INDEX(#REF!,MATCH(F164,#REF!,)),\"\")","v":""}]
[null,null,null,null,null,null,null,null,{"$f":"IFERROR(INDEX(#REF!,MATCH(F165,#REF!,)),\"\")","v":""}]
[null,null,null,null,null,null,null,null,{"$f":"IFERROR(INDEX(#REF!,MATCH(F166,#REF!,)),\"\")","v":""}]
[null,null,null,null,null,null,null,null,{"$f":"IFERROR(INDEX(#REF!,MATCH(F167,#REF!,)),\"\")","v":""}]
[null,null,null,null,null,null,null,null,{"$f":"IFERROR(INDEX(#REF!,MATCH(F168,#REF!,)),\"\")","v":""}]
[null,null,null,null,null,null,null,null,{"$f":"IFERROR(INDEX(#REF!,MATCH(F169,#REF!,)),\"\")","v":""}]
[null,null,null,null,null,null,null,null,{"$f":"IFERROR(INDEX(#REF!,MATCH(F170,#REF!,)),\"\")","v":""}]
[null,null,null,null,null,null,null,null,{"$f":"IFERROR(INDEX(#REF!,MATCH(F171,#REF!,)),\"\")","v":""}]
[null,null,null,null,null,null,null,null,{"$f":"IFERROR(INDEX(#REF!,MATCH(F172,#REF!,)),\"\")","v":""}]
[null,null,null,null,null,null,null,null,{"$f":"IFERROR(INDEX(#REF!,MATCH(F173,#REF!,)),\"\")","v":""}]
[null,null,null,null,null,null,null,null,{"$f":"IFERROR(INDEX(#REF!,MATCH(F174,#REF!,)),\"\")","v":""}]
[null,null,null,null,null,null,null,null,{"$f":"IFERROR(INDEX(#REF!,MATCH(F175,#REF!,)),\"\")","v":""}]
[null,null,null,null,null,null,null,null,{"$f":"IFERROR(INDEX(#REF!,MATCH(F176,#REF!,)),\"\")","v":""}]
[null,null,null,null,null,null,null,null,{"$f":"IFERROR(INDEX(#REF!,MATCH(F177,#REF!,)),\"\")","v":""}]
[null,null,null,null,null,null,null,null,{"$f":"IFERROR(INDEX(#REF!,MATCH(F178,#REF!,)),\"\")","v":""}]
[null,null,null,null,null,null,null,null,{"$f":"IFERROR(INDEX(#REF!,MATCH(F179,#REF!,)),\"\")","v":""}]
[null,null,null,null,null,null,null,null,{"$f":"IFERROR(INDEX(#REF!,MATCH(F180,#REF!,)),\"\")","v":""}]
[null,null,null,null,null,null,null,null,{"$f":"IFERROR(INDEX(#REF!,MATCH(F181,#REF!,)),\"\")","v":""}]
[null,null,null,null,null,null,null,null,{"$f":"IFERROR(INDEX(#REF!,MATCH(F182,#REF!,)),\"\")","v":""}]
[null,null,null,null,null,null,null,null,{"$f":"IFERROR(INDEX(#REF!,MATCH(F183,#REF!,)),\"\")","v":""}]
[null,null,null,null,null,null,null,null,{"$f":"IFERROR(INDEX(#REF!,MATCH(F184,#REF!,)),\"\")","v":""}]
[null,null,null,null,null,null,null,null,{"$f":"IFERROR(INDEX(#REF!,MATCH(F185,#REF!,)),\"\")","v":""}]
[null,null,null,null,null,null,null,null,{"$f":"IFERROR(INDEX(#REF!,MATCH(F186,#REF!,)),\"\")","v":""}]
[null,null,null,null,null,null,null,null,{"$f":"IFERROR(INDEX(#REF!,MATCH(F187,#REF!,)),\"\")","v":""}]
[null,null,null,null,null,null,null,null,{"$f":"IFERROR(INDEX(#REF!,MATCH(F188,#REF!,)),\"\")","v":""}]
[null,null,null,null,null,null,null,null,{"$f":"IFERROR(INDEX(#REF!,MATCH(F189,#REF!,)),\"\")","v":""}]
[null,null,null,null,null,null,null,null,{"$f":"IFERROR(INDEX(#REF!,MATCH(F190,#REF!,)),\"\")","v":""}]
[null,null,null,null,null,null,null,null,{"$f":"IFERROR(INDEX(#REF!,MATCH(F191,#REF!,)),\"\")","v":""}]
[null,null,null,null,null,null,null,null,{"$f":"IFERROR(INDEX(#REF!,MATCH(F192,#REF!,)),\"\")","v":""}]
[null,null,null,null,null,null,null,null,{"$f":"IFERROR(INDEX(#REF!,MATCH(F193,#REF!,)),\"\")","v":""}]
[null,null,null,null,null,null,null,null,{"$f":"IFERROR(INDEX(#REF!,MATCH(F194,#REF!,)),\"\")","v":""}]
[null,null,null,null,null,null,null,null,{"$f":"IFERROR(INDEX(#REF!,MATCH(F195,#REF!,)),\"\")","v":""}]
[null,null,null,null,null,null,null,null,{"$f":"IFERROR(INDEX(#REF!,MATCH(F196,#REF!,)),\"\")","v":""}]
[null,null,null,null,null,null,null,null,{"$f":"IFERROR(INDEX(#REF!,MATCH(F197,#REF!,)),\"\")","v":""}]
[null,null,null,null,null,null,null,null,{"$f":"IFERROR(INDEX(#REF!,MATCH(F198,#REF!,)),\"\")","v":""}]
[null,null,null,null,null,null,null,null,{"$f":"IFERROR(INDEX(#REF!,MATCH(F199,#REF!,)),\"\")","v":""}]
[null,null,null,null,null,null,null,null,{"$f":"IFERROR(INDEX(#REF!,MATCH(F200,#REF!,)),\"\")","v":""}]
[null,null,null,null,null,null,null,null,{"$f":"IFERROR(INDEX(#REF!,MATCH(F201,#REF!,)),\"\")","v":""}]
[null,null,null,null,null,null,null,null,{"$f":"IFERROR(INDEX(#REF!,MATCH(F202,#REF!,)),\"\")","v":""}]
[null,null,null,null,null,null,null,null,{"$f":"IFERROR(INDEX(#REF!,MATCH(F203,#REF!,)),\"\")","v":""}]
[null,null,null,null,null,null,null,null,{"$f":"IFERROR(INDEX(#REF!,MATCH(F204,#REF!,)),\"\")","v":""}]
[null,null,null,null,null,null,null,null,{"$f":"IFERROR(INDEX(#REF!,MATCH(F205,#REF!,)),\"\")","v":""}]
[null,null,null,null,null,null,null,null,{"$f":"IFERROR(INDEX(#REF!,MATCH(F206,#REF!,)),\"\")","v":""}]
[null,null,null,null,null,null,null,null,{"$f":"IFERROR(INDEX(#REF!,MATCH(F207,#REF!,)),\"\")","v":""}]
[null,null,null,null,null,null,null,null,{"$f":"IFERROR(INDEX(#REF!,MATCH(F208,#REF!,)),\"\")","v":""}]
[null,null,null,null,null,null,null,null,{"$f":"IFERROR(INDEX(#REF!,MATCH(F209,#REF!,)),\"\")","v":""}]
[null,null,null,null,null,null,null,null,{"$f":"IFERROR(INDEX(#REF!,MATCH(F210,#REF!,)),\"\")","v":""}]
[null,null,null,null,null,null,null,null,{"$f":"IFERROR(INDEX(#REF!,MATCH(F211,#REF!,)),\"\")","v":""}]
[null,null,null,null,null,null,null,null,{"$f":"IFERROR(INDEX(#REF!,MATCH(F212,#REF!,)),\"\")","v":""}]
[null,null,null,null,null,null,null,null,{"$f":"IFERROR(INDEX(#REF!,MATCH(F213,#REF!,)),\"\")","v":""}]
[null,null,null,null,null,null,null,null,{"$f":"IFERROR(INDEX(#REF!,MATCH(F214,#REF!,)),\"\")","v":""}]
[null,null,null,null,null,null,null,null,{"$f":"IFERROR(INDEX(#REF!,MATCH(F215,#REF!,)),\"\")","v":""}]
[null,null,null,null,null,null,null,null,{"$f":"IFERROR(INDEX(#REF!,MATCH(F216,#REF!,)),\"\")","v":""}]
[null,null,null,null,null,null,null,null,{"$f":"IFERROR(INDEX(#REF!,MATCH(F217,#REF!,)),\"\")","v":""}]
[null,null,null,null,null,null,null,null,{"$f":"IFERROR(INDEX(#REF!,MATCH(F218,#REF!,)),\"\")","v":""}]
[null,null,null,null,null,null,null,null,{"$f":"IFERROR(INDEX(#REF!,MATCH(F219,#REF!,)),\"\")","v":""}]
[null,null,null,null,null,null,null,null,{"$f":"IFERROR(INDEX(#REF!,MATCH(F220,#REF!,)),\"\")","v":""}]
[null,null,null,null,null,null,null,null,{"$f":"IFERROR(INDEX(#REF!,MATCH(F221,#REF!,)),\"\")","v":""}]
[null,null,null,null,null,null,null,null,{"$f":"IFERROR(INDEX(#REF!,MATCH(F222,#REF!,)),\"\")","v":""}]
[null,null,null,null,null,null,null,null,{"$f":"IFERROR(INDEX(#REF!,MATCH(F223,#REF!,)),\"\")","v":""}]
[null,null,null,null,null,null,null,null,{"$f":"IFERROR(INDEX(#REF!,MATCH(F224,#REF!,)),\"\")","v":""}]
[null,null,null,null,null,null,null,null,{"$f":"IFERROR(INDEX(#REF!,MATCH(F225,#REF!,)),\"\")","v":""}]
[null,null,null,null,null,null,null,null,{"$f":"IFERROR(INDEX(#REF!,MATCH(F226,#REF!,)),\"\")","v":""}]
[null,null,null,null,null,null,null,null,{"$f":"IFERROR(INDEX(#REF!,MATCH(F227,#REF!,)),\"\")","v":""}]
[null,null,null,null,null,null,null,null,{"$f":"IFERROR(INDEX(#REF!,MATCH(F228,#REF!,)),\"\")","v":""}]
[null,null,null,null,null,null,null,null,{"$f":"IFERROR(INDEX(#REF!,MATCH(F229,#REF!,)),\"\")","v":""}]
[null,null,null,null,null,null,null,null,{"$f":"IFERROR(INDEX(#REF!,MATCH(F230,#REF!,)),\"\")","v":""}]
[null,null,null,null,null,null,null,null,{"$f":"IFERROR(INDEX(#REF!,MATCH(F231,#REF!,)),\"\")","v":""}]
[null,null,null,null,null,null,null,null,{"$f":"IFERROR(INDEX(#REF!,MATCH(F232,#REF!,)),\"\")","v":""}]
[null,null,null,null,null,null,null,null,{"$f":"IFERROR(INDEX(#REF!,MATCH(F233,#REF!,)),\"\")","v":""}]
[null,null,null,null,null,null,null,null,{"$f":"IFERROR(INDEX(#REF!,MATCH(F234,#REF!,)),\"\")","v":""}]
[null,null,null,null,null,null,null,null,{"$f":"IFERROR(INDEX(#REF!,MATCH(F235,#REF!,)),\"\")","v":""}]
[null,null,null,null,null,null,null,null,{"$f":"IFERROR(INDEX(#REF!,MATCH(F236,#REF!,)),\"\")","v":""}]
[null,null,null,null,null,null,null,null,{"$f":"IFERROR(INDEX(#REF!,MATCH(F237,#REF!,)),\"\")","v":""}]
[null,null,null,null,null,null,null,null,{"$f":"IFERROR(INDEX(#REF!,MATCH(F238,#REF!,)),\"\")","v":""}]
[null,null,null,null,null,null,null,null,{"$f":"IFERROR(INDEX(#REF!,MATCH(F239,#REF!,)),\"\")","v":""}]
[null,null,null,null,null,null,null,null,{"$f":"IFERROR(INDEX(#REF!,MATCH(F240,#REF!,)),\"\")","v":""}]
[null,null,null,null,null,null,null,null,{"$f":"IFERROR(INDEX(#REF!,MATCH(F241,#REF!,)),\"\")","v":""}]
[null,null,null,null,null,null,null,null,{"$f":"IFERROR(INDEX(#REF!,MATCH(F242,#REF!,)),\"\")","v":""}]
[null,null,null,null,null,null,null,null,{"$f":"IFERROR(INDEX(#REF!,MATCH(F243,#REF!,)),\"\")","v":""}]
[null,null,null,null,null,null,null,null,{"$f":"IFERROR(INDEX(#REF!,MATCH(F244,#REF!,)),\"\")","v":""}]
[null,null,null,null,null,null,null,null,{"$f":"IFERROR(INDEX(#REF!,MATCH(F245,#REF!,)),\"\")","v":""}]
[null,null,null,null,null,null,null,null,{"$f":"IFERROR(INDEX(#REF!,MATCH(F246,#REF!,)),\"\")","v":""}]
[null,null,null,null,null,null,null,null,{"$f":"IFERROR(INDEX(#REF!,MATCH(F247,#REF!,)),\"\")","v":""}]
[null,null,null,null,null,null,null,null,{"$f":"IFERROR(INDEX(#REF!,MATCH(F248,#REF!,)),\"\")","v":""}]
[null,null,null,null,null,null,null,null,{"$f":"IFERROR(INDEX(#REF!,MATCH(F249,#REF!,)),\"\")","v":""}]
[null,null,null,null,null,null,null,null,{"$f":"IFERROR(INDEX(#REF!,MATCH(F250,#REF!,)),\"\")","v":""}]
[null,null,null,null,null,null,null,null,{"$f":"IFERROR(INDEX(#REF!,MATCH(F251,#REF!,)),\"\")","v":""}]
[null,null,null,null,null,null,null,null,{"$f":"IFERROR(INDEX(#REF!,MATCH(F252,#REF!,)),\"\")","v":""}]
[null,null,null,null,null,null,null,null,{"$f":"IFERROR(INDEX(#REF!,MATCH(F253,#REF!,)),\"\")","v":""}]
[null,null,null,null,null,null,null,null,{"$f":"IFERROR(INDEX(#REF!,MATCH(F254,#REF!,)),\"\")","v":""}]
[null,null,null,null,null,null,null,null,{"$f":"IFERROR(INDEX(#REF!,MATCH(F255,#REF!,)),\"\")","v":""}]
[null,null,null,null,null,null,null,null,{"$f":"IFERROR(INDEX(#REF!,MATCH(F256,#REF!,)),\"\")","v":""}]
[null,null,null,null,null,null,null,null,{"$f":"IFERROR(INDEX(#REF!,MATCH(F257,#REF!,)),\"\")","v":""}]
[null,null,null,null,null,null,null,null,{"$f":"IFERROR(INDEX(#REF!,MATCH(F258,#REF!,)),\"\")","v":""}]
[null,null,null,null,null,null,null,null,{"$f":"IFERROR(INDEX(#REF!,MATCH(F259,#REF!,)),\"\")","v":""}]
[null,null,null,null,null,null,null,null,{"$f":"IFERROR(INDEX(#REF!,MATCH(F260,#REF!,)),\"\")","v":""}]
[null,null,null,null,null,null,null,null,{"$f":"IFERROR(INDEX(#REF!,MATCH(F261,#REF!,)),\"\")","v":""}]
[null,null,null,null,null,null,null,null,{"$f":"IFERROR(INDEX(#REF!,MATCH(F262,#REF!,)),\"\")","v":""}]
[null,null,null,null,null,null,null,null,{"$f":"IFERROR(INDEX(#REF!,MATCH(F263,#REF!,)),\"\")","v":""}]
[null,null,null,null,null,null,null,null,{"$f":"IFERROR(INDEX(#REF!,MATCH(F264,#REF!,)),\"\")","v":""}]
[null,null,null,null,null,null,null,null,{"$f":"IFERROR(INDEX(#REF!,MATCH(F265,#REF!,)),\"\")","v":""}]
[null,null,null,null,null,null,null,null,{"$f":"IFERROR(INDEX(#REF!,MATCH(F266,#REF!,)),\"\")","v":""}]
[null,null,null,null,null,null,null,null,{"$f":"IFERROR(INDEX(#REF!,MATCH(F267,#REF!,)),\"\")","v":""}]
[null,null,null,null,null,null,null,null,{"$f":"IFERROR(INDEX(#REF!,MATCH(F268,#REF!,)),\"\")","v":""}]
[null,null,null,null,null,null,null,null,{"$f":"IFERROR(INDEX(#REF!,MATCH(F269,#REF!,)),\"\")","v":""}]
[null,null,null,null,null,null,null,null,{"$f":"IFERROR(INDEX(#REF!,MATCH(F270,#REF!,)),\"\")","v":""}]
[null,null,null,null,null,null,null,null,{"$f":"IFERROR(INDEX(#REF!,MATCH(F271,#REF!,)),\"\")","v":""}]
[null,null,null,null,null,null,null,null,{"$f":"IFERROR(INDEX(#REF!,MATCH(F272,#REF!,)),\"\")","v":""}]
[null,null,null,null,null,null,null,null,{"$f":"IFERROR(INDEX(#REF!,MATCH(F273,#REF!,)),\"\")","v":""}]
[null,null,null,null,null,null,null,null,{"$f":"IFERROR(INDEX(#REF!,MATCH(F274,#REF!,)),\"\")","v":""}]
[null,null,null,null,null,null,null,null,{"$f":"IFERROR(INDEX(#REF!,MATCH(F275,#REF!,)),\"\")","v":""}]
[null,null,null,null,null,null,null,null,{"$f":"IFERROR(INDEX(#REF!,MATCH(F276,#REF!,)),\"\")","v":""}]
[null,null,null,null,null,null,null,null,{"$f":"IFERROR(INDEX(#REF!,MATCH(F277,#REF!,)),\"\")","v":""}]
[null,null,null,null,null,null,null,null,{"$f":"IFERROR(INDEX(#REF!,MATCH(F278,#REF!,)),\"\")","v":""}]
[null,null,null,null,null,null,null,null,{"$f":"IFERROR(INDEX(#REF!,MATCH(F279,#REF!,)),\"\")","v":""}]
[null,null,null,null,null,null,null,null,{"$f":"IFERROR(INDEX(#REF!,MATCH(F280,#REF!,)),\"\")","v":""}]
[null,null,null,null,null,null,null,null,{"$f":"IFERROR(INDEX(#REF!,MATCH(F281,#REF!,)),\"\")","v":""}]
[null,null,null,null,null,null,null,null,{"$f":"IFERROR(INDEX(#REF!,MATCH(F282,#REF!,)),\"\")","v":""}]
[null,null,null,null,null,null,null,null,{"$f":"IFERROR(INDEX(#REF!,MATCH(F283,#REF!,)),\"\")","v":""}]
[null,null,null,null,null,null,null,null,{"$f":"IFERROR(INDEX(#REF!,MATCH(F284,#REF!,)),\"\")","v":""}]
[null,null,null,null,null,null,null,null,{"$f":"IFERROR(INDEX(#REF!,MATCH(F285,#REF!,)),\"\")","v":""}]
[null,null,null,null,null,null,null,null,{"$f":"IFERROR(INDEX(#REF!,MATCH(F286,#REF!,)),\"\")","v":""}]
[null,null,null,null,null,null,null,null,{"$f":"IFERROR(INDEX(#REF!,MATCH(F287,#REF!,)),\"\")","v":""}]
[null,null,null,null,null,null,null,null,{"$f":"IFERROR(INDEX(#REF!,MATCH(F288,#REF!,)),\"\")","v":""}]
[null,null,null,null,null,null,null,null,{"$f":"IFERROR(INDEX(#REF!,MATCH(F289,#REF!,)),\"\")","v":""}]
[null,null,null,null,null,null,null,null,{"$f":"IFERROR(INDEX(#REF!,MATCH(F290,#REF!,)),\"\")","v":""}]
[null,null,null,null,null,null,null,null,{"$f":"IFERROR(INDEX(#REF!,MATCH(F291,#REF!,)),\"\")","v":""}]
[null,null,null,null,null,null,null,null,{"$f":"IFERROR(INDEX(#REF!,MATCH(F292,#REF!,)),\"\")","v":""}]
[null,null,null,null,null,null,null,null,{"$f":"IFERROR(INDEX(#REF!,MATCH(F293,#REF!,)),\"\")","v":""}]
[null,null,null,null,null,null,null,null,{"$f":"IFERROR(INDEX(#REF!,MATCH(F294,#REF!,)),\"\")","v":""}]
[null,null,null,null,null,null,null,null,{"$f":"IFERROR(INDEX(#REF!,MATCH(F295,#REF!,)),\"\")","v":""}]
[null,null,null,null,null,null,null,null,{"$f":"IFERROR(INDEX(#REF!,MATCH(F296,#REF!,)),\"\")","v":""}]
[null,null,null,null,null,null,null,null,{"$f":"IFERROR(INDEX(#REF!,MATCH(F297,#REF!,)),\"\")","v":""}]
[null,null,null,null,null,null,null,null,{"$f":"IFERROR(INDEX(#REF!,MATCH(F298,#REF!,)),\"\")","v":""}]
[null,null,null,null,null,null,null,null,{"$f":"IFERROR(INDEX(#REF!,MATCH(F299,#REF!,)),\"\")","v":""}]
[null,null,null,null,null,null,null,null,{"$f":"IFERROR(INDEX(#REF!,MATCH(F300,#REF!,)),\"\")","v":""}]
[null,null,null,null,null,null,null,null,{"$f":"IFERROR(INDEX(#REF!,MATCH(F301,#REF!,)),\"\")","v":""}]
[null,null,null,null,null,null,null,null,{"$f":"IFERROR(INDEX(#REF!,MATCH(F302,#REF!,)),\"\")","v":""}]
[null,null,null,null,null,null,null,null,{"$f":"IFERROR(INDEX(#REF!,MATCH(F303,#REF!,)),\"\")","v":""}]
[null,null,null,null,null,null,null,null,{"$f":"IFERROR(INDEX(#REF!,MATCH(F304,#REF!,)),\"\")","v":""}]
[null,null,null,null,null,null,null,null,{"$f":"IFERROR(INDEX(#REF!,MATCH(F305,#REF!,)),\"\")","v":""}]
[null,null,null,null,null,null,null,null,{"$f":"IFERROR(INDEX(#REF!,MATCH(F306,#REF!,)),\"\")","v":""}]
[null,null,null,null,null,null,null,null,{"$f":"IFERROR(INDEX(#REF!,MATCH(F307,#REF!,)),\"\")","v":""}]
[null,null,null,null,null,null,null,null,{"$f":"IFERROR(INDEX(#REF!,MATCH(F308,#REF!,)),\"\")","v":""}]
[null,null,null,null,null,null,null,null,{"$f":"IFERROR(INDEX(#REF!,MATCH(F309,#REF!,)),\"\")","v":""}]
[null,null,null,null,null,null,null,null,{"$f":"IFERROR(INDEX(#REF!,MATCH(F310,#REF!,)),\"\")","v":""}]
[null,null,null,null,null,null,null,null,{"$f":"IFERROR(INDEX(#REF!,MATCH(F311,#REF!,)),\"\")","v":""}]
[null,null,null,null,null,null,null,null,{"$f":"IFERROR(INDEX(#REF!,MATCH(F312,#REF!,)),\"\")","v":""}]
[null,null,null,null,null,null,null,null,{"$f":"IFERROR(INDEX(#REF!,MATCH(F313,#REF!,)),\"\")","v":""}]
[null,null,null,null,null,null,null,null,{"$f":"IFERROR(INDEX(#REF!,MATCH(F314,#REF!,)),\"\")","v":""}]
[null,null,null,null,null,null,null,null,{"$f":"IFERROR(INDEX(#REF!,MATCH(F315,#REF!,)),\"\")","v":""}]
[null,null,null,null,null,null,null,null,{"$f":"IFERROR(INDEX(#REF!,MATCH(F316,#REF!,)),\"\")","v":""}]
[null,null,null,null,null,null,null,null,{"$f":"IFERROR(INDEX(#REF!,MATCH(F317,#REF!,)),\"\")","v":""}]
[null,null,null,null,null,null,null,null,{"$f":"IFERROR(INDEX(#REF!,MATCH(F318,#REF!,)),\"\")","v":""}]
[null,null,null,null,null,null,null,null,{"$f":"IFERROR(INDEX(#REF!,MATCH(F319,#REF!,)),\"\")","v":""}]
[null,null,null,null,null,null,null,null,{"$f":"IFERROR(INDEX(#REF!,MATCH(F320,#REF!,)),\"\")","v":""}]
[null,null,null,null,null,null,null,null,{"$f":"IFERROR(INDEX(#REF!,MATCH(F321,#REF!,)),\"\")","v":""}]
[null,null,null,null,null,null,null,null,{"$f":"IFERROR(INDEX(#REF!,MATCH(F322,#REF!,)),\"\")","v":""}]
[null,null,null,null,null,null,null,null,{"$f":"IFERROR(INDEX(#REF!,MATCH(F323,#REF!,)),\"\")","v":""}]
[null,null,null,null,null,null,null,null,{"$f":"IFERROR(INDEX(#REF!,MATCH(F324,#REF!,)),\"\")","v":""}]
[null,null,null,null,null,null,null,null,{"$f":"IFERROR(INDEX(#REF!,MATCH(F325,#REF!,)),\"\")","v":""}]
[null,null,null,null,null,null,null,null,{"$f":"IFERROR(INDEX(#REF!,MATCH(F326,#REF!,)),\"\")","v":""}]
[null,null,null,null,null,null,null,null,{"$f":"IFERROR(INDEX(#REF!,MATCH(F327,#REF!,)),\"\")","v":""}]
[null,null,null,null,null,null,null,null,{"$f":"IFERROR(INDEX(#REF!,MATCH(F328,#REF!,)),\"\")","v":""}]
[null,null,null,null,null,null,null,null,{"$f":"IFERROR(INDEX(#REF!,MATCH(F329,#REF!,)),\"\")","v":""}]
[null,null,null,null,null,null,null,null,{"$f":"IFERROR(INDEX(#REF!,MATCH(F330,#REF!,)),\"\")","v":""}]
[null,null,null,null,null,null,null,null,{"$f":"IFERROR(INDEX(#REF!,MATCH(F331,#REF!,)),\"\")","v":""}]
[null,null,null,null,null,null,null,null,{"$f":"IFERROR(INDEX(#REF!,MATCH(F332,#REF!,)),\"\")","v":""}]
[null,null,null,null,null,null,null,null,{"$f":"IFERROR(INDEX(#REF!,MATCH(F333,#REF!,)),\"\")","v":""}]
[null,null,null,null,null,null,null,null,{"$f":"IFERROR(INDEX(#REF!,MATCH(F334,#REF!,)),\"\")","v":""}]
[null,null,null,null,null,null,null,null,{"$f":"IFERROR(INDEX(#REF!,MATCH(F335,#REF!,)),\"\")","v":""}]
[null,null,null,null,null,null,null,null,{"$f":"IFERROR(INDEX(#REF!,MATCH(F336,#REF!,)),\"\")","v":""}]
[null,null,null,null,null,null,null,null,{"$f":"IFERROR(INDEX(#REF!,MATCH(F337,#REF!,)),\"\")","v":""}]
[null,null,null,null,null,null,null,null,{"$f":"IFERROR(INDEX(#REF!,MATCH(F338,#REF!,)),\"\")","v":""}]
[null,null,null,null,null,null,null,null,{"$f":"IFERROR(INDEX(#REF!,MATCH(F339,#REF!,)),\"\")","v":""}]
[null,null,null,null,null,null,null,null,{"$f":"IFERROR(INDEX(#REF!,MATCH(F340,#REF!,)),\"\")","v":""}]
[null,null,null,null,null,null,null,null,{"$f":"IFERROR(INDEX(#REF!,MATCH(F341,#REF!,)),\"\")","v":""}]
[null,null,null,null,null,null,null,null,{"$f":"IFERROR(INDEX(#REF!,MATCH(F342,#REF!,)),\"\")","v":""}]
[null,null,null,null,null,null,null,null,{"$f":"IFERROR(INDEX(#REF!,MATCH(F343,#REF!,)),\"\")","v":""}]
[null,null,null,null,null,null,null,null,{"$f":"IFERROR(INDEX(#REF!,MATCH(F344,#REF!,)),\"\")","v":""}]
[null,null,null,null,null,null,null,null,{"$f":"IFERROR(INDEX(#REF!,MATCH(F345,#REF!,)),\"\")","v":""}]
[null,null,null,null,null,null,null,null,{"$f":"IFERROR(INDEX(#REF!,MATCH(F346,#REF!,)),\"\")","v":""}]
[null,null,null,null,null,null,null,null,{"$f":"IFERROR(INDEX(#REF!,MATCH(F347,#REF!,)),\"\")","v":""}]
[null,null,null,null,null,null,null,null,{"$f":"IFERROR(INDEX(#REF!,MATCH(F348,#REF!,)),\"\")","v":""}]
[null,null,null,null,null,null,null,null,{"$f":"IFERROR(INDEX(#REF!,MATCH(F349,#REF!,)),\"\")","v":""}]
[null,null,null,null,null,null,null,null,{"$f":"IFERROR(INDEX(#REF!,MATCH(F350,#REF!,)),\"\")","v":""}]
[null,null,null,null,null,null,null,null,{"$f":"IFERROR(INDEX(#REF!,MATCH(F351,#REF!,)),\"\")","v":""}]
[null,null,null,null,null,null,null,null,{"$f":"IFERROR(INDEX(#REF!,MATCH(F352,#REF!,)),\"\")","v":""}]
[null,null,null,null,null,null,null,null,{"$f":"IFERROR(INDEX(#REF!,MATCH(F353,#REF!,)),\"\")","v":""}]
[null,null,null,null,null,null,null,null,{"$f":"IFERROR(INDEX(#REF!,MATCH(F354,#REF!,)),\"\")","v":""}]
[null,null,null,null,null,null,null,null,{"$f":"IFERROR(INDEX(#REF!,MATCH(F355,#REF!,)),\"\")","v":""}]
[null,null,null,null,null,null,null,null,{"$f":"IFERROR(INDEX(#REF!,MATCH(F356,#REF!,)),\"\")","v":""}]
[null,null,null,null,null,null,null,null,{"$f":"IFERROR(INDEX(#REF!,MATCH(F357,#REF!,)),\"\")","v":""}]
[null,null,null,null,null,null,null,null,{"$f":"IFERROR(INDEX(#REF!,MATCH(F358,#REF!,)),\"\")","v":""}]
[null,null,null,null,null,null,null,null,{"$f":"IFERROR(INDEX(#REF!,MATCH(F359,#REF!,)),\"\")","v":""}]
[null,null,null,null,null,null,null,null,{"$f":"IFERROR(INDEX(#REF!,MATCH(F360,#REF!,)),\"\")","v":""}]
[null,null,null,null,null,null,null,null,{"$f":"IFERROR(INDEX(#REF!,MATCH(F361,#REF!,)),\"\")","v":""}]
[null,null,null,null,null,null,null,null,{"$f":"IFERROR(INDEX(#REF!,MATCH(F362,#REF!,)),\"\")","v":""}]
[null,null,null,null,null,null,null,null,{"$f":"IFERROR(INDEX(#REF!,MATCH(F363,#REF!,)),\"\")","v":""}]
[null,null,null,null,null,null,null,null,{"$f":"IFERROR(INDEX(#REF!,MATCH(F364,#REF!,)),\"\")","v":""}]
[null,null,null,null,null,null,null,null,{"$f":"IFERROR(INDEX(#REF!,MATCH(F365,#REF!,)),\"\")","v":""}]
[null,null,null,null,null,null,null,null,{"$f":"IFERROR(INDEX(#REF!,MATCH(F366,#REF!,)),\"\")","v":""}]
[null,null,null,null,null,null,null,null,{"$f":"IFERROR(INDEX(#REF!,MATCH(F367,#REF!,)),\"\")","v":""}]
[null,null,null,null,null,null,null,null,{"$f":"IFERROR(INDEX(#REF!,MATCH(F368,#REF!,)),\"\")","v":""}]
[null,null,null,null,null,null,null,null,{"$f":"IFERROR(INDEX(#REF!,MATCH(F369,#REF!,)),\"\")","v":""}]
[null,null,null,null,null,null,null,null,{"$f":"IFERROR(INDEX(#REF!,MATCH(F370,#REF!,)),\"\")","v":""}]
[null,null,null,null,null,null,null,null,{"$f":"IFERROR(INDEX(#REF!,MATCH(F371,#REF!,)),\"\")","v":""}]
[null,null,null,null,null,null,null,null,{"$f":"IFERROR(INDEX(#REF!,MATCH(F372,#REF!,)),\"\")","v":""}]
[null,null,null,null,null,null,null,null,{"$f":"IFERROR(INDEX(#REF!,MATCH(F373,#REF!,)),\"\")","v":""}]
[null,null,null,null,null,null,null,null,{"$f":"IFERROR(INDEX(#REF!,MATCH(F374,#REF!,)),\"\")","v":""}]
[null,null,null,null,null,null,null,null,{"$f":"IFERROR(INDEX(#REF!,MATCH(F375,#REF!,)),\"\")","v":""}]
[null,null,null,null,null,null,null,null,{"$f":"IFERROR(INDEX(#REF!,MATCH(F376,#REF!,)),\"\")","v":""}]
[null,null,null,null,null,null,null,null,{"$f":"IFERROR(INDEX(#REF!,MATCH(F377,#REF!,)),\"\")","v":""}]
[null,null,null,null,null,null,null,null,{"$f":"IFERROR(INDEX(#REF!,MATCH(F378,#REF!,)),\"\")","v":""}]
[null,null,null,null,null,null,null,null,{"$f":"IFERROR(INDEX(#REF!,MATCH(F379,#REF!,)),\"\")","v":""}]
[null,null,null,null,null,null,null,null,{"$f":"IFERROR(INDEX(#REF!,MATCH(F380,#REF!,)),\"\")","v":""}]
[null,null,null,null,null,null,null,null,{"$f":"IFERROR(INDEX(#REF!,MATCH(F381,#REF!,)),\"\")","v":""}]
[null,null,null,null,null,null,null,null,{"$f":"IFERROR(INDEX(#REF!,MATCH(F382,#REF!,)),\"\")","v":""}]
[null,null,null,null,null,null,null,null,{"$f":"IFERROR(INDEX(#REF!,MATCH(F383,#REF!,)),\"\")","v":""}]
[null,null,null,null,null,null,null,null,{"$f":"IFERROR(INDEX(#REF!,MATCH(F384,#REF!,)),\"\")","v":""}]
[null,null,null,null,null,null,null,null,{"$f":"IFERROR(INDEX(#REF!,MATCH(F385,#REF!,)),\"\")","v":""}]
[null,null,null,null,null,null,null,null,{"$f":"IFERROR(INDEX(#REF!,MATCH(F386,#REF!,)),\"\")","v":""}]
[null,null,null,null,null,null,null,null,{"$f":"IFERROR(INDEX(#REF!,MATCH(F387,#REF!,)),\"\")","v":""}]
[null,null,null,null,null,null,null,null,{"$f":"IFERROR(INDEX(#REF!,MATCH(F388,#REF!,)),\"\")","v":""}]
[null,null,null,null,null,null,null,null,{"$f":"IFERROR(INDEX(#REF!,MATCH(F389,#REF!,)),\"\")","v":""}]
[null,null,null,null,null,null,null,null,{"$f":"IFERROR(INDEX(#REF!,MATCH(F390,#REF!,)),\"\")","v":""}]
[null,null,null,null,null,null,null,null,{"$f":"IFERROR(INDEX(#REF!,MATCH(F391,#REF!,)),\"\")","v":""}]
[null,null,null,null,null,null,null,null,{"$f":"IFERROR(INDEX(#REF!,MATCH(F392,#REF!,)),\"\")","v":""}]
[null,null,null,null,null,null,null,null,{"$f":"IFERROR(INDEX(#REF!,MATCH(F393,#REF!,)),\"\")","v":""}]
[null,null,null,null,null,null,null,null,{"$f":"IFERROR(INDEX(#REF!,MATCH(F394,#REF!,)),\"\")","v":""}]
[null,null,null,null,null,null,null,null,{"$f":"IFERROR(INDEX(#REF!,MATCH(F395,#REF!,)),\"\")","v":""}]
[null,null,null,null,null,null,null,null,{"$f":"IFERROR(INDEX(#REF!,MATCH(F396,#REF!,)),\"\")","v":""}]
[null,null,null,null,null,null,null,null,{"$f":"IFERROR(INDEX(#REF!,MATCH(F397,#REF!,)),\"\")","v":""}]
[null,null,null,null,null,null,null,null,{"$f":"IFERROR(INDEX(#REF!,MATCH(F398,#REF!,)),\"\")","v":""}]
[null,null,null,null,null,null,null,null,{"$f":"IFERROR(INDEX(#REF!,MATCH(F399,#REF!,)),\"\")","v":""}]
[null,null,null,null,null,null,null,null,{"$f":"IFERROR(INDEX(#REF!,MATCH(F400,#REF!,)),\"\")","v":""}]
[null,null,null,null,null,null,null,null,{"$f":"IFERROR(INDEX(#REF!,MATCH(F401,#REF!,)),\"\")","v":""}]
[null,null,null,null,null,null,null,null,{"$f":"IFERROR(INDEX(#REF!,MATCH(F402,#REF!,)),\"\")","v":""}]
[null,null,null,null,null,null,null,null,{"$f":"IFERROR(INDEX(#REF!,MATCH(F403,#REF!,)),\"\")","v":""}]
[null,null,null,null,null,null,null,null,{"$f":"IFERROR(INDEX(#REF!,MATCH(F404,#REF!,)),\"\")","v":""}]
[null,null,null,null,null,null,null,null,{"$f":"IFERROR(INDEX(#REF!,MATCH(F405,#REF!,)),\"\")","v":""}]
[null,null,null,null,null,null,null,null,{"$f":"IFERROR(INDEX(#REF!,MATCH(F406,#REF!,)),\"\")","v":""}]
[null,null,null,null,null,null,null,null,{"$f":"IFERROR(INDEX(#REF!,MATCH(F407,#REF!,)),\"\")","v":""}]
[null,null,null,null,null,null,null,null,{"$f":"IFERROR(INDEX(#REF!,MATCH(F408,#REF!,)),\"\")","v":""}]
[null,null,null,null,null,null,null,null,{"$f":"IFERROR(INDEX(#REF!,MATCH(F409,#REF!,)),\"\")","v":""}]
[null,null,null,null,null,null,null,null,{"$f":"IFERROR(INDEX(#REF!,MATCH(F410,#REF!,)),\"\")","v":""}]
[null,null,null,null,null,null,null,null,{"$f":"IFERROR(INDEX(#REF!,MATCH(F411,#REF!,)),\"\")","v":""}]
[null,null,null,null,null,null,null,null,{"$f":"IFERROR(INDEX(#REF!,MATCH(F412,#REF!,)),\"\")","v":""}]
[null,null,null,null,null,null,null,null,{"$f":"IFERROR(INDEX(#REF!,MATCH(F413,#REF!,)),\"\")","v":""}]
[null,null,null,null,null,null,null,null,{"$f":"IFERROR(INDEX(#REF!,MATCH(F414,#REF!,)),\"\")","v":""}]
[null,null,null,null,null,null,null,null,{"$f":"IFERROR(INDEX(#REF!,MATCH(F415,#REF!,)),\"\")","v":""}]
[null,null,null,null,null,null,null,null,{"$f":"IFERROR(INDEX(#REF!,MATCH(F416,#REF!,)),\"\")","v":""}]
[null,null,null,null,null,null,null,null,{"$f":"IFERROR(INDEX(#REF!,MATCH(F417,#REF!,)),\"\")","v":""}]
[null,null,null,null,null,null,null,null,{"$f":"IFERROR(INDEX(#REF!,MATCH(F418,#REF!,)),\"\")","v":""}]
[null,null,null,null,null,null,null,null,{"$f":"IFERROR(INDEX(#REF!,MATCH(F419,#REF!,)),\"\")","v":""}]
[null,null,null,null,null,null,null,null,{"$f":"IFERROR(INDEX(#REF!,MATCH(F420,#REF!,)),\"\")","v":""}]
[null,null,null,null,null,null,null,null,{"$f":"IFERROR(INDEX(#REF!,MATCH(F421,#REF!,)),\"\")","v":""}]
[null,null,null,null,null,null,null,null,{"$f":"IFERROR(INDEX(#REF!,MATCH(F422,#REF!,)),\"\")","v":""}]
[null,null,null,null,null,null,null,null,{"$f":"IFERROR(INDEX(#REF!,MATCH(F423,#REF!,)),\"\")","v":""}]
[null,null,null,null,null,null,null,null,{"$f":"IFERROR(INDEX(#REF!,MATCH(F424,#REF!,)),\"\")","v":""}]
[null,null,null,null,null,null,null,null,{"$f":"IFERROR(INDEX(#REF!,MATCH(F425,#REF!,)),\"\")","v":""}]
[null,null,null,null,null,null,null,null,{"$f":"IFERROR(INDEX(#REF!,MATCH(F426,#REF!,)),\"\")","v":""}]
[null,null,null,null,null,null,null,null,{"$f":"IFERROR(INDEX(#REF!,MATCH(F427,#REF!,)),\"\")","v":""}]
[null,null,null,null,null,null,null,null,{"$f":"IFERROR(INDEX(#REF!,MATCH(F428,#REF!,)),\"\")","v":""}]
[null,null,null,null,null,null,null,null,{"$f":"IFERROR(INDEX(#REF!,MATCH(F429,#REF!,)),\"\")","v":""}]
[null,null,null,null,null,null,null,null,{"$f":"IFERROR(INDEX(#REF!,MATCH(F430,#REF!,)),\"\")","v":""}]
[null,null,null,null,null,null,null,null,{"$f":"IFERROR(INDEX(#REF!,MATCH(F431,#REF!,)),\"\")","v":""}]
[null,null,null,null,null,null,null,null,{"$f":"IFERROR(INDEX(#REF!,MATCH(F432,#REF!,)),\"\")","v":""}]
[null,null,null,null,null,null,null,null,{"$f":"IFERROR(INDEX(#REF!,MATCH(F433,#REF!,)),\"\")","v":""}]
[null,null,null,null,null,null,null,null,{"$f":"IFERROR(INDEX(#REF!,MATCH(F434,#REF!,)),\"\")","v":""}]
[null,null,null,null,null,null,null,null,{"$f":"IFERROR(INDEX(#REF!,MATCH(F435,#REF!,)),\"\")","v":""}]
[null,null,null,null,null,null,null,null,{"$f":"IFERROR(INDEX(#REF!,MATCH(F436,#REF!,)),\"\")","v":""}]
[null,null,null,null,null,null,null,null,{"$f":"IFERROR(INDEX(#REF!,MATCH(F437,#REF!,)),\"\")","v":""}]
[null,null,null,null,null,null,null,null,{"$f":"IFERROR(INDEX(#REF!,MATCH(F438,#REF!,)),\"\")","v":""}]
[null,null,null,null,null,null,null,null,{"$f":"IFERROR(INDEX(#REF!,MATCH(F439,#REF!,)),\"\")","v":""}]
[null,null,null,null,null,null,null,null,{"$f":"IFERROR(INDEX(#REF!,MATCH(F440,#REF!,)),\"\")","v":""}]
[null,null,null,null,null,null,null,null,{"$f":"IFERROR(INDEX(#REF!,MATCH(F441,#REF!,)),\"\")","v":""}]
[null,null,null,null,null,null,null,null,{"$f":"IFERROR(INDEX(#REF!,MATCH(F442,#REF!,)),\"\")","v":""}]
[null,null,null,null,null,null,null,null,{"$f":"IFERROR(INDEX(#REF!,MATCH(F443,#REF!,)),\"\")","v":""}]
[null,null,null,null,null,null,null,null,{"$f":"IFERROR(INDEX(#REF!,MATCH(F444,#REF!,)),\"\")","v":""}]
[null,null,null,null,null,null,null,null,{"$f":"IFERROR(INDEX(#REF!,MATCH(F445,#REF!,)),\"\")","v":""}]
[null,null,null,null,null,null,null,null,{"$f":"IFERROR(INDEX(#REF!,MATCH(F446,#REF!,)),\"\")","v":""}]
[null,null,null,null,null,null,null,null,{"$f":"IFERROR(INDEX(#REF!,MATCH(F447,#REF!,)),\"\")","v":""}]
[null,null,null,null,null,null,null,null,{"$f":"IFERROR(INDEX(#REF!,MATCH(F448,#REF!,)),\"\")","v":""}]
[null,null,null,null,null,null,null,null,{"$f":"IFERROR(INDEX(#REF!,MATCH(F449,#REF!,)),\"\")","v":""}]
[null,null,null,null,null,null,null,null,{"$f":"IFERROR(INDEX(#REF!,MATCH(F450,#REF!,)),\"\")","v":""}]
[null,null,null,null,null,null,null,null,{"$f":"IFERROR(INDEX(#REF!,MATCH(F451,#REF!,)),\"\")","v":""}]
[null,null,null,null,null,null,null,null,{"$f":"IFERROR(INDEX(#REF!,MATCH(F452,#REF!,)),\"\")","v":""}]
[null,null,null,null,null,null,null,null,{"$f":"IFERROR(INDEX(#REF!,MATCH(F453,#REF!,)),\"\")","v":""}]
[null,null,null,null,null,null,null,null,{"$f":"IFERROR(INDEX(#REF!,MATCH(F454,#REF!,)),\"\")","v":""}]
[null,null,null,null,null,null,null,null,{"$f":"IFERROR(INDEX(#REF!,MATCH(F455,#REF!,)),\"\")","v":""}]
[null,null,null,null,null,null,null,null,{"$f":"IFERROR(INDEX(#REF!,MATCH(F456,#REF!,)),\"\")","v":""}]
[null,null,null,null,null,null,null,null,{"$f":"IFERROR(INDEX(#REF!,MATCH(F457,#REF!,)),\"\")","v":""}]
[null,null,null,null,null,null,null,null,{"$f":"IFERROR(INDEX(#REF!,MATCH(F458,#REF!,)),\"\")","v":""}]
[null,null,null,null,null,null,null,null,{"$f":"IFERROR(INDEX(#REF!,MATCH(F459,#REF!,)),\"\")","v":""}]
[null,null,null,null,null,null,null,null,{"$f":"IFERROR(INDEX(#REF!,MATCH(F460,#REF!,)),\"\")","v":""}]
[null,null,null,null,null,null,null,null,{"$f":"IFERROR(INDEX(#REF!,MATCH(F461,#REF!,)),\"\")","v":""}]
[null,null,null,null,null,null,null,null,{"$f":"IFERROR(INDEX(#REF!,MATCH(F462,#REF!,)),\"\")","v":""}]
[null,null,null,null,null,null,null,null,{"$f":"IFERROR(INDEX(#REF!,MATCH(F463,#REF!,)),\"\")","v":""}]
[null,null,null,null,null,null,null,null,{"$f":"IFERROR(INDEX(#REF!,MATCH(F464,#REF!,)),\"\")","v":""}]
[null,null,null,null,null,null,null,null,{"$f":"IFERROR(INDEX(#REF!,MATCH(F465,#REF!,)),\"\")","v":""}]
[null,null,null,null,null,null,null,null,{"$f":"IFERROR(INDEX(#REF!,MATCH(F466,#REF!,)),\"\")","v":""}]
[null,null,null,null,null,null,null,null,{"$f":"IFERROR(INDEX(#REF!,MATCH(F467,#REF!,)),\"\")","v":""}]
[null,null,null,null,null,null,null,null,{"$f":"IFERROR(INDEX(#REF!,MATCH(F468,#REF!,)),\"\")","v":""}]
[null,null,null,null,null,null,null,null,{"$f":"IFERROR(INDEX(#REF!,MATCH(F469,#REF!,)),\"\")","v":""}]
[null,null,null,null,null,null,null,null,{"$f":"IFERROR(INDEX(#REF!,MATCH(F470,#REF!,)),\"\")","v":""}]
[null,null,null,null,null,null,null,null,{"$f":"IFERROR(INDEX(#REF!,MATCH(F471,#REF!,)),\"\")","v":""}]
[null,null,null,null,null,null,null,null,{"$f":"IFERROR(INDEX(#REF!,MATCH(F472,#REF!,)),\"\")","v":""}]
[null,null,null,null,null,null,null,null,{"$f":"IFERROR(INDEX(#REF!,MATCH(F473,#REF!,)),\"\")","v":""}]
[null,null,null,null,null,null,null,null,{"$f":"IFERROR(INDEX(#REF!,MATCH(F474,#REF!,)),\"\")","v":""}]
[null,null,null,null,null,null,null,null,{"$f":"IFERROR(INDEX(#REF!,MATCH(F475,#REF!,)),\"\")","v":""}]
[null,null,null,null,null,null,null,null,{"$f":"IFERROR(INDEX(#REF!,MATCH(F476,#REF!,)),\"\")","v":""}]
[null,null,null,null,null,null,null,null,{"$f":"IFERROR(INDEX(#REF!,MATCH(F477,#REF!,)),\"\")","v":""}]
[null,null,null,null,null,null,null,null,{"$f":"IFERROR(INDEX(#REF!,MATCH(F478,#REF!,)),\"\")","v":""}]
[null,null,null,null,null,null,null,null,{"$f":"IFERROR(INDEX(#REF!,MATCH(F479,#REF!,)),\"\")","v":""}]
[null,null,null,null,null,null,null,null,{"$f":"IFERROR(INDEX(#REF!,MATCH(F480,#REF!,)),\"\")","v":""}]
[null,null,null,null,null,null,null,null,{"$f":"IFERROR(INDEX(#REF!,MATCH(F481,#REF!,)),\"\")","v":""}]
[null,null,null,null,null,null,null,null,{"$f":"IFERROR(INDEX(#REF!,MATCH(F482,#REF!,)),\"\")","v":""}]
[null,null,null,null,null,null,null,null,{"$f":"IFERROR(INDEX(#REF!,MATCH(F483,#REF!,)),\"\")","v":""}]
[null,null,null,null,null,null,null,null,{"$f":"IFERROR(INDEX(#REF!,MATCH(F484,#REF!,)),\"\")","v":""}]
[null,null,null,null,null,null,null,null,{"$f":"IFERROR(INDEX(#REF!,MATCH(F485,#REF!,)),\"\")","v":""}]
[null,null,null,null,null,null,null,null,{"$f":"IFERROR(INDEX(#REF!,MATCH(F486,#REF!,)),\"\")","v":""}]
[null,null,null,null,null,null,null,null,{"$f":"IFERROR(INDEX(#REF!,MATCH(F487,#REF!,)),\"\")","v":""}]
[null,null,null,null,null,null,null,null,{"$f":"IFERROR(INDEX(#REF!,MATCH(F488,#REF!,)),\"\")","v":""}]
[null,null,null,null,null,null,null,null,{"$f":"IFERROR(INDEX(#REF!,MATCH(F489,#REF!,)),\"\")","v":""}]
[null,null,null,null,null,null,null,null,{"$f":"IFERROR(INDEX(#REF!,MATCH(F490,#REF!,)),\"\")","v":""}]
[null,null,null,null,null,null,null,null,{"$f":"IFERROR(INDEX(#REF!,MATCH(F491,#REF!,)),\"\")","v":""}]
[null,null,null,null,null,null,null,null,{"$f":"IFERROR(INDEX(#REF!,MATCH(F492,#REF!,)),\"\")","v":""}]
[null,null,null,null,null,null,null,null,{"$f":"IFERROR(INDEX(#REF!,MATCH(F493,#REF!,)),\"\")","v":""}]
[null,null,null,null,null,null,null,null,{"$f":"IFERROR(INDEX(#REF!,MATCH(F494,#REF!,)),\"\")","v":""}]
[null,null,null,null,null,null,null,null,{"$f":"IFERROR(INDEX(#REF!,MATCH(F495,#REF!,)),\"\")","v":""}]
[null,null,null,null,null,null,null,null,{"$f":"IFERROR(INDEX(#REF!,MATCH(F496,#REF!,)),\"\")","v":""}]
[null,null,null,null,null,null,null,null,{"$f":"IFERROR(INDEX(#REF!,MATCH(F497,#REF!,)),\"\")","v":""}]
[null,null,null,null,null,null,null,null,{"$f":"IFERROR(INDEX(#REF!,MATCH(F498,#REF!,)),\"\")","v":""}]
[null,null,null,null,null,null,null,null,{"$f":"IFERROR(INDEX(#REF!,MATCH(F499,#REF!,)),\"\")","v":""}]
[null,null,null,null,null,null,null,null,{"$f":"IFERROR(INDEX(#REF!,MATCH(F500,#REF!,)),\"\")","v":""}]